lending/lending_fUSD_20260110
["ID","MTS","AMOUNT","RATE_DAILY","PERIOD"]
[401176779,1768019444308,-150.0,0.00016496,2]
[401176780,1768019444318,-7814.20944865,0.00016498,2]
[401176781,1768019444327,-150.0,0.000165,2]
[401176782,1768019444336,-150.0,0.000165,2]
[401176783,1768019444347,-150.0,0.000165,2]
[401176784,1768019444357,-150.0,0.00016506,2]
[401176785,1768019444367,-150.0,0.00016507,2]
[401176786,1768019444377,-150.0,0.0001651,2]
[401176787,1768019444387,-150.0,0.00016513,2]
[401176788,1768019444398,-270.11891858,0.00016517,2]
[401176789,1768019444408,-150.0,0.00016519,2]
[401176790,1768019444418,-150.0,0.00016519,2]
[401176791,1768019444428,-150.0,0.00016527,2]
[401176792,1768019444437,-150.0,0.00016527,2]
[401176793,1768019444447,-150.0,0.00016527,2]
[401176794,1768019444457,-150.0,0.0001654,2]
[401176795,1768019444467,-150.0,0.00016541,2]
[401176796,1768019444478,-150.0,0.00016542,2]
[401176797,1768019444487,-150.0,0.00016542,2]
[401176798,1768019444497,-150.0,0.00016548,2]
[401176799,1768019444507,-150.0,0.00016555,2]
[401176800,1768019444517,-150.0,0.0001656,2]
[401176801,1768019444527,-150.0,0.0001656,2]
[401176802,1768019444537,-1000.0,0.0001656,2]
[401176803,1768019444547,-150.0,0.00016565,2]
[401176804,1768019444557,-150.0,0.00016565,2]
[401176805,1768019444567,-236.98300921,0.00016565,2]
[401176806,1768019444577,-150.0,0.00016568,2]
[401176807,1768019444587,-150.0,0.00016572,2]
[401176808,1768019444596,-150.0,0.00016574,2]
[401176809,1768019444606,-150.0,0.00016582,2]
[401176810,1768019444616,-150.0,0.00016587,2]
[401176811,1768019444626,-150.0,0.00016587,2]
[401176812,1768019444636,-150.0,0.00016589,2]
[401176813,1768019444645,-150.0,0.00016591,2]
[401176814,1768019444655,-150.0,0.00016593,2]
[401176815,1768019444665,-150.0,0.00016603,2]
[401176816,1768019444675,-150.0,0.00016608,2]
[401176817,1768019444685,-150.0,0.00016609,2]
[401176818,1768019444695,-150.0,0.00016609,2]
[401176819,1768019444705,-150.0,0.0001661,2]
[401176820,1768019444714,-150.0,0.0001661,2]
[401176821,1768019444724,-165.95,0.00016611,2]
[401176822,1768019444734,-150.0,0.00016625,2]
[401176823,1768019444744,-150.0,0.0001663,2]
[401176824,1768019444754,-150.0,0.00016633,2]
[401176825,1768019444764,-150.0,0.00016633,2]
[401176826,1768019444775,-1000.0,0.00016634,2]
[401176827,1768019444784,-150.0,0.00016634,2]
[401176828,1768019444794,-150.0,0.00016636,2]
[401176829,1768019444804,-150.0,0.00016642,2]
[401176830,1768019444814,-150.0,0.0001665,2]
[401176831,1768019444824,-150.0,0.0001665,2]
[401176832,1768019444834,-150.0,0.0001665,2]
[401176833,1768019444844,-150.0,0.0001665,2]
[401176834,1768019444854,-150.0,0.0001665,2]
[401176835,1768019444863,-150.0,0.00016656,2]
[401176836,1768019444873,-150.0,0.00016656,2]
[401176837,1768019444893,-150.0,0.00016658,2]
[401176838,1768019444904,-150.0,0.00016664,2]
[401176839,1768019444914,-150.0,0.00016666,2]
[401176840,1768019444924,-150.0,0.0001667,2]
[401176841,1768019444934,-150.0,0.0001667,2]
[401176842,1768019444944,-1101.0,0.00016671,2]
[401176843,1768019444954,-150.0,0.00016675,2]
[401176844,1768019444965,-150.0,0.00016678,2]
[401176845,1768019444975,-150.0,0.00016678,2]
[401176846,1768019444985,-150.0,0.00016691,2]
[401176847,1768019444995,-150.0,0.00016691,2]
[401176848,1768019445005,-150.0,0.00016691,2]
[401176849,1768019445015,-150.0,0.00016697,2]
[401176850,1768019445026,-1000.0,0.000167,2]
[401176851,1768019445036,-150.0,0.00016701,2]
[401176852,1768019445046,-150.0,0.00016701,2]
[401176853,1768019445056,-150.0,0.00016709,2]
[401176854,1768019445066,-150.0,0.00016711,2]
[401176855,1768019445076,-150.0,0.00016718,2]
[401176856,1768019445087,-150.0,0.00016724,2]
[401176857,1768019445099,-150.0,0.00016724,2]
[401176858,1768019445110,-150.0,0.00016724,2]
[401176859,1768019445120,-150.0,0.00016728,2]
[401176860,1768019445130,-7814.20944865,0.00016732,2]
[401176861,1768019445141,-150.0,0.00016732,2]
[401176862,1768019445151,-150.0,0.0001674,2]
[401176863,1768019445160,-150.0,0.00016743,2]
[401176864,1768019445170,-150.0,0.00016745,2]
[401176865,1768019445182,-150.0,0.00016747,2]
[401176866,1768019445192,-150.0,0.00016747,2]
[401176867,1768019445202,-150.0,0.00016748,2]
[401176868,1768019445212,-150.0,0.00016752,2]
[401176869,1768019445222,-150.0,0.00016756,2]
[401176870,1768019445233,-150.0,0.00016759,2]
[401176871,1768019445243,-150.0,0.0001677,2]
[401176872,1768019445253,-150.0,0.0001677,2]
[401176873,1768019445263,-150.0,0.00016773,2]
[401176874,1768019445272,-150.0,0.00016773,2]
[401176876,1768019445430,-150.0,0.00016777,2]
[401176877,1768019445440,-150.0,0.00016789,2]
[401176878,1768019445450,-150.0,0.0001679,2]
[401176879,1768019445460,-150.0,0.00016792,2]
[401176880,1768019445469,-150.0,0.00016792,2]
[401176881,1768019445479,-150.0,0.00016793,2]
[401176882,1768019445489,-150.0,0.000168,2]
[401176883,1768019445499,-150.0,0.000168,2]
[401176884,1768019445508,-150.0,0.000168,2]
[401176885,1768019445517,-150.0,0.00016811,2]
[401176886,1768019445527,-150.0,0.00016814,2]
[401176887,1768019445537,-182.92,0.00016814,2]
[401176888,1768019445547,-150.0,0.00016815,2]
[401176889,1768019445556,-150.0,0.00016815,2]
[401176890,1768019445565,-1000.0,0.00016821,2]
[401176891,1768019445575,-150.0,0.00016821,2]
[401176892,1768019445584,-150.0,0.00016822,2]
[401176893,1768019445594,-1000.0,0.00016825,2]
[401176894,1768019445603,-150.0,0.00016826,2]
[401176895,1768019445613,-150.0,0.00016827,2]
[401176896,1768019445623,-150.0,0.0001683,2]
[401176897,1768019445633,-150.0,0.00016834,2]
[401176898,1768019445643,-221.27,0.00016837,2]
[401176899,1768019445653,-150.0,0.00016838,2]
[401176900,1768019445663,-150.0,0.00016838,2]
[401176901,1768019445672,-150.0,0.00016845,2]
[401176902,1768019445682,-150.0,0.00016852,2]
[401176903,1768019445692,-150.0,0.00016855,2]
[401176904,1768019445701,-150.0,0.00016855,2]
[401176905,1768019445711,-150.0,0.00016855,2]
[401176906,1768019445721,-150.0,0.00016861,2]
[401176907,1768019445731,-150.0,0.00016861,2]
[401176908,1768019445740,-150.0,0.00016875,2]
[401176909,1768019445750,-150.0,0.00016879,2]
[401176910,1768019445760,-150.0,0.00016882,2]
[401176911,1768019445769,-150.0,0.00016883,2]
[401176912,1768019445779,-150.0,0.00016884,2]
[401176913,1768019445789,-150.0,0.00016884,2]
[401176914,1768019445799,-150.0,0.00016887,2]
[401176915,1768019445808,-150.0,0.00016895,2]
[401176916,1768019445823,-236.98300921,0.00016899,2]
[401176917,1768019445833,-150.0,0.00016904,2]
[401176918,1768019445843,-150.0,0.00016906,2]
[401176919,1768019445853,-150.0,0.00016906,2]
[401176920,1768019445864,-150.0,0.00016909,2]
[401176921,1768019445874,-150.0,0.00016913,2]
[401176922,1768019445884,-150.0,0.00016914,2]
[401176923,1768019445894,-150.0,0.00016916,2]
[401176924,1768019445904,-150.0,0.0001692,2]
[401176925,1768019445914,-150.0,0.0001692,2]
[401176926,1768019445924,-150.0,0.00016929,2]
[401176927,1768019445934,-150.0,0.00016929,2]
[401176928,1768019445943,-150.0,0.00016936,2]
[401176929,1768019445953,-150.0,0.00016936,2]
[401176930,1768019445964,-823.0,0.00016938,2]
[401176931,1768019445973,-150.0,0.00016945,2]
[401176932,1768019445983,-150.0,0.00016947,2]
[401176933,1768019445992,-150.0,0.0001695,2]
[401176934,1768019446002,-150.0,0.00016952,2]
[401176935,1768019446012,-150.0,0.00016952,2]
[401176936,1768019446022,-150.0,0.00016953,2]
[401176937,1768019446031,-150.0,0.00016957,2]
[401176938,1768019446041,-1000.0,0.00016959,2]
[401176939,1768019446051,-150.0,0.00016964,2]
[401176940,1768019446061,-7814.20944865,0.00016965,2]
[401176941,1768019446071,-150.0,0.00016975,2]
[401176942,1768019446081,-150.0,0.00016975,2]
[401176943,1768019446091,-150.0,0.00016976,2]
[401176944,1768019446103,-150.0,0.00016977,2]
[401176945,1768019446113,-150.0,0.00016981,2]
[401176946,1768019446127,-150.0,0.00016983,2]
[401176947,1768019446136,-150.0,0.00016985,2]
[401176948,1768019446146,-600.0,0.00016986,2]
[401176949,1768019446156,-150.0,0.00016991,2]
[401176950,1768019446165,-150.0,0.00016997,2]
[401176951,1768019446178,-150.0,0.00016997,2]
[401176952,1768019446187,-150.0,0.00016998,2]
[401176953,1768019446196,-377.61,0.00017,2]
[401176954,1768019446206,-50024.44903139,0.00017,2]
[401176955,1768019446216,-210.20353926,0.00017,2]
[401176956,1768019446226,-150.0,0.00017007,2]
[401176957,1768019446236,-150.0,0.0001701,2]
[401176958,1768019446246,-150.0,0.00017015,2]
[401176959,1768019446256,-150.0,0.00017018,2]
[401176960,1768019446266,-150.0,0.00017018,2]
[401176961,1768019446276,-150.0,0.00017018,2]
[401176962,1768019446285,-150.0,0.0001702,2]
[401176963,1768019446295,-150.0,0.0001702,2]
[401176964,1768019446305,-150.0,0.00017038,2]
[401176965,1768019446315,-150.0,0.00017039,2]
[401176966,1768019446325,-150.0,0.00017043,2]
[401176967,1768019446335,-150.0,0.00017043,2]
[401176968,1768019446344,-150.0,0.00017045,2]
[401176969,1768019446353,-150.0,0.00017049,2]
[401176970,1768019446363,-150.0,0.00017051,2]
[401176971,1768019446372,-150.0,0.00017059,2]
[401176972,1768019446381,-150.0,0.00017061,2]
[401176973,1768019446391,-150.0,0.00017066,2]
[401176974,1768019446402,-150.0,0.00017066,2]
[401176975,1768019446412,-150.0,0.00017069,2]
[401176976,1768019446422,-150.0,0.00017073,2]
[401176977,1768019446433,-150.0,0.0001708,2]
[401176978,1768019446443,-150.0,0.00017083,2]
[401176979,1768019446452,-150.0,0.00017084,2]
[401176980,1768019446462,-150.0,0.00017089,2]
[401176981,1768019446472,-150.0,0.00017089,2]
[401176982,1768019446481,-1000.0,0.00017098,2]
[401176983,1768019446495,-739.85,0.00017099,2]
[401176984,1768019446505,-805.55508344,0.00017099,2]
[401176985,1768019446514,-553.64373807,0.00017099,2]
[401176986,1768019446525,-250.0,0.00017099,2]
[401176987,1768019446535,-400.56648216,0.00017099,2]
[401176988,1768019446544,-250.0,0.00017099,2]
[401176989,1768019446554,-500.0,0.00017099,2]
[401176990,1768019446563,-1000.0,0.00017099,2]
[401176991,1768019446573,-2000.0,0.00017099,2]
[401176992,1768019446582,-250.0,0.00017099,2]
[401176993,1768019446592,-500.0,0.00017099,2]
[401176994,1768019446602,-1000.0,0.00017099,2]
[401176995,1768019446611,-2000.0,0.00017099,2]
[401176996,1768019446621,-250.0,0.00017099,2]
[401176997,1768019446632,-500.0,0.00017099,2]
[401176998,1768019446642,-1000.0,0.00017099,2]
[401176999,1768019446652,-2000.0,0.00017099,2]
[401177000,1768019446662,-250.0,0.00017099,2]
[401177001,1768019446673,-500.0,0.00017099,2]
[401177002,1768019446687,-1000.0,0.00017099,2]
[401177003,1768019446697,-322.6107,0.00017099,2]
[401177004,1768019446707,-2000.0,0.00017099,2]
[401177005,1768019446716,-500.0,0.00017099,2]
[401177006,1768019446727,-1000.0,0.00017099,2]
[401177007,1768019446736,-2000.0,0.00017099,2]
[401177008,1768019446746,-250.0,0.00017099,2]
[401177009,1768019446756,-500.0,0.00017099,2]
[401177010,1768019446766,-1000.0,0.00017099,2]
[401177011,1768019446775,-2000.0,0.00017099,2]
[401177012,1768019446785,-250.0,0.00017099,2]
[401177013,1768019446795,-500.0,0.00017099,2]
[401177014,1768019446805,-1000.0,0.00017099,2]
[401177015,1768019446814,-2000.0,0.00017099,2]
[401177016,1768019446823,-250.0,0.00017099,2]
[401177017,1768019446832,-500.0,0.00017099,2]
[401177018,1768019446841,-1000.0,0.00017099,2]
[401177019,1768019446850,-2000.0,0.00017099,2]
[401177020,1768019446861,-250.0,0.00017099,2]
[401177021,1768019446871,-500.0,0.00017099,2]
[401177022,1768019446882,-1000.0,0.00017099,2]
[401177023,1768019446892,-525.94323817,0.00017099,2]
[401177024,1768019446903,-250.0,0.00017099,2]
[401177025,1768019446912,-500.0,0.00017099,2]
[401177026,1768019446922,-1000.0,0.00017099,2]
[401177027,1768019446932,-250.0,0.00017099,2]
[401177028,1768019446942,-500.0,0.00017099,2]
[401177029,1768019446951,-1000.0,0.00017099,2]
[401177030,1768019446962,-290.47234924,0.00017099,2]
[401177031,1768019446972,-250.0,0.00017099,2]
[401177032,1768019446982,-500.0,0.00017099,2]
[401177033,1768019446992,-1000.0,0.00017099,2]
[401177034,1768019447002,-500.0,0.00017099,2]
[401177035,1768019447013,-500.0,0.00017099,2]
[401177036,1768019447023,-500.0,0.00017099,2]
[401177037,1768019447032,-500.0,0.00017099,2]
[401177038,1768019447042,-500.0,0.00017099,2]
[401177039,1768019447052,-500.0,0.00017099,2]
[401177040,1768019447061,-500.0,0.00017099,2]
[401177041,1768019447072,-500.0,0.00017099,2]
[401177042,1768019447082,-500.0,0.00017099,2]
[401177043,1768019447091,-500.0,0.00017099,2]
[401177044,1768019447105,-500.0,0.00017099,2]
[401177045,1768019447114,-500.0,0.00017099,2]
[401177046,1768019447126,-150.0,0.000171,2]
[401177047,1768019447139,-150.0,0.000171,2]
[401177048,1768019447149,-150.0,0.000171,2]
[401177049,1768019447159,-150.0,0.000171,2]
[401177050,1768019447170,-150.0,0.000171,2]
[401177051,1768019447180,-150.0,0.000171,2]
[401177052,1768019447190,-150.0,0.000171,2]
[401177053,1768019447200,-150.0,0.000171,2]
[401177054,1768019447210,-150.0,0.000171,2]
[401177055,1768019447220,-1069.8949683,0.000171,2]
[401177056,1768019447229,-150.0,0.00017111,2]
[401177057,1768019447240,-150.0,0.00017111,2]
[401177058,1768019447250,-150.0,0.00017116,2]
[401177059,1768019447260,-150.0,0.00017117,2]
[401177060,1768019447270,-150.0,0.0001712,2]
[401177061,1768019447288,-150.0,0.00017127,2]
[401177062,1768019447301,-150.0,0.00017131,2]
[401177063,1768019447311,-150.0,0.00017134,2]
[401177064,1768019447320,-150.0,0.00017134,2]
[401177065,1768019447331,-150.0,0.00017139,2]
[401177066,1768019447341,-150.0,0.00017141,2]
[401177067,1768019447352,-150.0,0.00017149,2]
[401177068,1768019447363,-150.0,0.00017151,2]
[401177069,1768019447373,-150.0,0.00017155,2]
[401177070,1768019447383,-150.0,0.00017157,2]
[401177071,1768019447398,-150.0,0.00017157,2]
[401177072,1768019447408,-176.9,0.00017159,2]
[401177073,1768019447418,-150.0,0.00017161,2]
[401177074,1768019447428,-150.0,0.00017162,2]
[401177075,1768019447439,-659.3281205,0.00017164,2]
[401177076,1768019447449,-150.0,0.0001718,2]
[401177077,1768019447460,-150.0,0.0001718,2]
[401177078,1768019447470,-150.0,0.00017182,2]
[401177079,1768019447481,-150.0,0.00017182,2]
[401177080,1768019447491,-150.0,0.00017182,2]
[401177081,1768019447500,-150.0,0.00017185,2]
[401177082,1768019447511,-150.0,0.0001719,2]
[401177083,1768019447521,-150.0,0.00017193,2]
[401177084,1768019447531,-7814.20944865,0.00017199,2]
[401177085,1768019447541,-150.0,0.00017202,2]
[401177086,1768019447551,-150.0,0.00017203,2]
[401177087,1768019447561,-150.0,0.00017203,2]
[401177088,1768019447572,-150.0,0.00017209,2]
[401177089,1768019447582,-150.0,0.00017215,2]
[401177090,1768019447592,-150.0,0.00017217,2]
[401177091,1768019447602,-150.0,0.00017219,2]
[401177092,1768019447613,-150.0,0.00017223,2]
[401177093,1768019447624,-150.0,0.00017224,2]
[401177094,1768019447634,-150.0,0.00017225,2]
[401177095,1768019447645,-150.0,0.00017225,2]
[401177096,1768019447654,-236.98300921,0.00017232,2]
[401177097,1768019447664,-1000.0,0.00017234,2]
[401177098,1768019447674,-176.9,0.00017235,2]
[401177099,1768019447685,-150.0,0.00017236,2]
[401177100,1768019447695,-150.0,0.00017243,2]
[401177101,1768019447706,-150.0,0.00017247,2]
[401177102,1768019447716,-150.0,0.00017248,2]
[401177103,1768019447726,-150.0,0.00017248,2]
[401177104,1768019447736,-150.0,0.0001725,2]
[401177105,1768019447747,-150.0,0.00017253,2]
[401177106,1768019447757,-150.0,0.00017255,2]
[401177107,1768019447767,-368.0,0.00017261,2]
[401177108,1768019447777,-150.0,0.00017264,2]
[401177109,1768019447788,-150.0,0.00017264,2]
[401177110,1768019447799,-150.0,0.00017271,2]
[401177111,1768019447810,-150.0,0.00017271,2]
[401177112,1768019447820,-150.0,0.0001728,2]
[401177113,1768019447830,-150.0,0.0001728,2]
[401177114,1768019447841,-150.0,0.00017284,2]
[401177115,1768019447851,-150.0,0.00017286,2]
[401177116,1768019447861,-150.0,0.00017287,2]
[401177117,1768019447870,-150.0,0.00017291,2]
[401177118,1768019447880,-150.0,0.00017294,2]
[401177119,1768019447890,-150.0,0.00017294,2]
[401177120,1768019447899,-150.0,0.00017296,2]
[401177121,1768019447909,-150.0,0.00017305,2]
[401177122,1768019447919,-176.9,0.00017312,2]
[401177123,1768019447930,-150.0,0.00017313,2]
[401177124,1768019447940,-150.0,0.00017316,2]
[401177125,1768019447951,-150.0,0.00017316,2]
[401177126,1768019447961,-150.0,0.00017317,2]
[401177127,1768019447971,-150.0,0.00017318,2]
[401177128,1768019447980,-150.0,0.00017321,2]
[401177129,1768019447991,-150.0,0.00017325,2]
[401177130,1768019448000,-150.0,0.00017339,2]
[401177131,1768019448011,-150.0,0.00017339,2]
[401177132,1768019448021,-150.0,0.00017345,2]
[401177133,1768019448032,-150.0,0.00017345,2]
[401177134,1768019448043,-150.0,0.00017345,2]
[401177135,1768019448053,-150.0,0.00017348,2]
[401177136,1768019448063,-150.0,0.00017355,2]
[401177137,1768019448073,-159.16121496,0.00017359,2]
[401177138,1768019448083,-150.0,0.00017362,2]
[401177139,1768019448093,-150.0,0.00017362,2]
[401177140,1768019448106,-150.0,0.00017366,2]
[401177141,1768019448116,-150.0,0.0001737,2]
[401177142,1768019448127,-150.0,0.00017373,2]
[401177143,1768019448137,-739.85,0.00017373,2]
[401177144,1768019448148,-150.0,0.00017374,2]
[401177145,1768019448158,-150.0,0.00017378,2]
[401177146,1768019448167,-150.0,0.00017379,2]
[401177147,1768019448178,-500.0,0.00017384,2]
[401177148,1768019448188,-150.0,0.00017385,2]
[401177149,1768019448199,-150.0,0.00017385,2]
[401177150,1768019448209,-150.0,0.00017386,2]
[401177151,1768019448218,-176.9,0.00017388,2]
[401177152,1768019448228,-150.0,0.00017389,2]
[401177153,1768019448238,-150.0,0.000174,2]
[401177154,1768019448248,-150.0,0.000174,2]
[401177155,1768019448257,-150.0,0.000174,2]
[401177156,1768019448267,-150.0,0.00017407,2]
[401177157,1768019448277,-150.0,0.00017408,2]
[401177158,1768019448287,-150.0,0.00017408,2]
[401177159,1768019448297,-150.0,0.0001741,2]
[401177160,1768019448306,-150.0,0.00017411,2]
[401177161,1768019448316,-150.0,0.00017423,2]
[401177162,1768019448326,-150.0,0.00017427,2]
[401177163,1768019448336,-150.0,0.00017427,2]
[401177164,1768019448346,-150.0,0.0001743,2]
[401177165,1768019448357,-150.0,0.0001743,2]
[401177166,1768019448367,-7814.20944865,0.00017433,2]
[401177167,1768019448377,-150.0,0.00017441,2]
[401177168,1768019448388,-150.0,0.00017444,2]
[401177169,1768019448400,-150.0,0.00017448,2]
[401177170,1768019448410,-150.0,0.00017452,2]
[401177171,1768019448419,-150.0,0.00017453,2]
[401177172,1768019448430,-150.0,0.00017453,2]
[401177173,1768019448439,-150.0,0.00017455,2]
[401177174,1768019448449,-150.0,0.00017457,2]
[401177175,1768019448460,-150.0,0.0001746,2]
[401177176,1768019448469,-176.9,0.00017465,2]
[401177177,1768019448479,-150.0,0.00017468,2]
[401177178,1768019448489,-150.0,0.00017472,2]
[401177179,1768019448499,-150.0,0.00017476,2]
[401177180,1768019448508,-150.0,0.00017476,2]
[401177181,1768019448518,-150.0,0.00017476,2]
[401177182,1768019448528,-150.0,0.00017482,2]
[401177183,1768019448537,-150.0,0.00017489,2]
[401177184,1768019448547,-150.0,0.00017491,2]
[401177185,1768019448557,-150.0,0.00017499,2]
[401177186,1768019448567,-150.0,0.00017499,2]
[401177187,1768019448576,-150.0,0.00017503,2]
[401177188,1768019448586,-1101.0,0.00017505,2]
[401177189,1768019448596,-150.0,0.00017509,2]
[401177190,1768019448606,-150.0,0.00017509,2]
[401177191,1768019448616,-150.0,0.00017509,2]
[401177192,1768019448626,-150.0,0.00017522,2]
[401177193,1768019448636,-150.0,0.00017522,2]
[401177194,1768019448646,-150.0,0.00017525,2]
[401177195,1768019448656,-688.0,0.00017526,2]
[401177196,1768019448666,-150.0,0.0001753,2]
[401177197,1768019448675,-150.0,0.0001753,2]
[401177198,1768019448686,-600.0,0.00017534,2]
[401177199,1768019448696,-150.0,0.00017534,2]
[401177200,1768019448706,-150.0,0.00017536,2]
[401177201,1768019448716,-1000.0,0.00017541,2]
[401177202,1768019448726,-176.9,0.00017541,2]
[401177203,1768019448736,-150.0,0.00017542,2]
[401177204,1768019448746,-150.0,0.00017544,2]
[401177205,1768019448756,-150.0,0.00017544,2]
[401177206,1768019448767,-150.0,0.0001755,2]
[401177207,1768019448776,-150.0,0.0001755,2]
[401177208,1768019448786,-150.0,0.0001755,2]
[401177209,1768019448796,-150.0,0.0001755,2]
[401177210,1768019448806,-150.0,0.0001755,2]
[401177211,1768019448816,-150.0,0.00017558,2]
[401177212,1768019448826,-150.0,0.00017564,2]
[401177213,1768019448836,-150.0,0.00017566,2]
[401177214,1768019448845,-236.98300921,0.00017566,2]
[401177215,1768019448856,-150.0,0.00017567,2]
[401177216,1768019448866,-150.0,0.00017567,2]
[401177217,1768019448876,-150.0,0.0001757,2]
[401177218,1768019448886,-150.0,0.00017575,2]
[401177219,1768019448896,-150.0,0.0001759,2]
[401177220,1768019448906,-150.0,0.0001759,2]
[401177221,1768019448916,-150.0,0.00017591,2]
[401177222,1768019448926,-150.0,0.00017591,2]
[401177223,1768019448936,-150.0,0.00017592,2]
[401177224,1768019448946,-150.0,0.00017597,2]
[401177225,1768019448956,-1000.0,0.000176,2]
[401177226,1768019448966,-150.0,0.00017607,2]
[401177227,1768019448976,-150.0,0.00017609,2]
[401177228,1768019448986,-150.0,0.00017611,2]
[401177229,1768019448996,-150.0,0.00017613,2]
[401177230,1768019449006,-150.0,0.00017613,2]
[401177231,1768019449016,-176.9,0.00017618,2]
[401177232,1768019449026,-150.0,0.00017618,2]
[401177233,1768019449036,-150.0,0.00017626,2]
[401177234,1768019449045,-150.0,0.00017628,2]
[401177235,1768019449055,-150.0,0.00017632,2]
[401177236,1768019449065,-150.0,0.00017635,2]
[401177237,1768019449075,-150.0,0.00017635,2]
[401177238,1768019449084,-150.0,0.0001764,2]
[401177239,1768019449094,-150.0,0.0001764,2]
[401177240,1768019449107,-10537.80982193,0.0001764,2]
[401177241,1768019449117,-1000.0,0.0001764,2]
[401177242,1768019449126,-150.0,0.00017645,2]
[401177243,1768019449136,-739.85,0.00017647,2]
[401177244,1768019449146,-574.12855637,0.00017647,2]
[401177245,1768019449155,-560.0,0.00017649,2]
[401177246,1768019449165,-150.0,0.00017652,2]
[401177247,1768019449175,-150.0,0.00017658,2]
[401177248,1768019449185,-150.0,0.00017658,2]
[401177249,1768019449196,-150.0,0.00017659,2]
[401177250,1768019449206,-150.0,0.0001766,2]
[401177251,1768019449216,-7814.20944865,0.00017666,2]
[401177252,1768019449225,-150.0,0.00017673,2]
[401177253,1768019449235,-150.0,0.00017673,2]
[401177254,1768019449245,-150.0,0.00017673,2]
[401177255,1768019449256,-150.0,0.00017681,2]
[401177256,1768019449266,-150.0,0.00017681,2]
[401177257,1768019449276,-150.0,0.00017687,2]
[401177258,1768019449286,-150.0,0.0001769,2]
[401177259,1768019449295,-150.0,0.00017693,2]
[401177260,1768019449306,-176.9,0.00017694,2]
[401177261,1768019449316,-150.0,0.00017694,2]
[401177262,1768019449326,-150.0,0.000177,2]
[401177263,1768019449337,-150.0,0.000177,2]
[401177264,1768019449347,-150.0,0.000177,2]
[401177265,1768019449358,-1000.0,0.000177,2]
[401177266,1768019449368,-150.0,0.00017704,2]
[401177267,1768019449379,-150.0,0.00017704,2]
[401177268,1768019449389,-150.0,0.00017705,2]
[401177269,1768019449399,-150.0,0.00017714,2]
[401177270,1768019449410,-150.0,0.00017721,2]
[401177271,1768019449421,-230.15043616,0.00017726,2]
[401177272,1768019449432,-150.0,0.00017727,2]
[401177273,1768019449443,-150.0,0.00017727,2]
[401177274,1768019449454,-150.0,0.00017727,2]
[401177275,1768019449464,-150.0,0.00017728,2]
[401177276,1768019449475,-150.0,0.0001773,2]
[401177277,1768019449485,-7554.21886386,0.0001773,2]
[401177278,1768019449495,-150.0,0.00017734,2]
[401177279,1768019449506,-1000.0,0.00017738,2]